[Event "GrandPrix_29.05"]
[Site "Chess.com"]
[Date "2020.05.29"]
[Round "1"]
[White "Sanan_Sjugirov"]
[Black "Dedic8"]
[Result "1-0"]
[WhiteElo "2862"]
[BlackElo "2181"]
[TimeControl "600+2"]
[EndTime "9:24:55 PDT"]
[Termination "Sanan_Sjugirov won by resignation"]

1. d4 {[%clk 0:10:01.9]} 1... Nf6 {[%clk 0:10:00.4]} 2. c4 {[%clk 0:09:59.7]}
2... g6 {[%clk 0:09:58.1]} 3. Nc3 {[%clk 0:09:55.2]} 3... d5 {[%clk 0:09:56.9]}
4. cxd5 {[%clk 0:09:55.2]} 4... Nxd5 {[%clk 0:09:58.8]} 5. e4 {[%clk 0:09:55]}
5... Nxc3 {[%clk 0:09:57.3]} 6. bxc3 {[%clk 0:09:56.9]} 6... Bg7 {[%clk
0:09:58.8]} 7. Nf3 {[%clk 0:09:55.2]} 7... c5 {[%clk 0:09:59.1]} 8. Be3 {[%clk
0:09:55.6]} 8... Qa5 {[%clk 0:09:58.4]} 9. Qd2 {[%clk 0:09:48.8]} 9... O-O
{[%clk 0:09:59.4]} 10. Rc1 {[%clk 0:09:45.8]} 10... Nd7 {[%clk 0:09:52.7]} 11.
Bd3 {[%clk 0:09:20]} 11... e5 {[%clk 0:08:15.1]} 12. d5 {[%clk 0:09:05.5]} 12...
f5 {[%clk 0:08:15.5]} 13. Bh6 {[%clk 0:08:56.6]} 13... fxe4 {[%clk 0:07:38.3]}
14. Bxe4 {[%clk 0:08:45.7]} 14... Nf6 {[%clk 0:07:39]} 15. Bxg7 {[%clk
0:08:33.9]} 15... Kxg7 {[%clk 0:07:39.3]} 16. Qc2 {[%clk 0:07:20.5]} 16... c4
{[%clk 0:06:57.7]} 17. O-O {[%clk 0:06:53.1]} 17... Nxd5 {[%clk 0:06:48.3]} 18.
Nxe5 {[%clk 0:05:10.1]} 18... Ne3 {[%clk 0:06:21.7]} 19. fxe3 {[%clk 0:05:07.9]}
19... Rxf1+ {[%clk 0:06:22.3]} 20. Rxf1 {[%clk 0:05:07.8]} 20... Qxe5 {[%clk
0:06:24.2]} 21. Qf2 {[%clk 0:04:35.6]} 21... Be6 {[%clk 0:06:11.7]} 22. Bxb7
{[%clk 0:04:30.4]} 22... Rb8 {[%clk 0:06:12.3]} 23. e4 {[%clk 0:04:14.9]} 23...
Rd8 {[%clk 0:03:22]} 24. Bd5 {[%clk 0:04:12.7]} 24... Bxd5 {[%clk 0:03:13.6]}
25. exd5 {[%clk 0:04:14.6]} 25... a5 {[%clk 0:01:27.4]} 26. Qa7+ {[%clk
0:02:47]} 26... Kh6 {[%clk 0:01:26.6]} 27. Qxa5 {[%clk 0:02:28.1]} 27... Rxd5
{[%clk 0:01:26.4]} 28. Qb4 {[%clk 0:02:28]} 28... Qe3+ {[%clk 0:00:55.9]} 29.
Kh1 {[%clk 0:02:27.7]} 29... Rf5 {[%clk 0:00:55.4]} 30. Rg1 {[%clk 0:02:22.3]}
30... Qe2 {[%clk 0:00:45.9]} 31. Qb1 {[%clk 0:02:07.5]} 31... Rf2 {[%clk
0:00:36.9]} 32. a4 {[%clk 0:01:55.9]} 32... Qd2 {[%clk 0:00:28.2]} 33. Qe4
{[%clk 0:01:40.3]} 33... Rf4 {[%clk 0:00:21.6]} 34. Qe5 {[%clk 0:01:39.6]} 34...
Rf5 {[%clk 0:00:21.5]} 35. Qg3 {[%clk 0:01:28.2]} 35... Rg5 {[%clk 0:00:12.7]}
36. Qh4+ {[%clk 0:01:18.5]} 36... Kg7 {[%clk 0:00:07.5]} 37. Qh3 {[%clk
0:00:53.4]} 37... Rh5 {[%clk 0:00:07.3]} 38. Qg3 {[%clk 0:00:52.4]} 38... Rg5
{[%clk 0:00:05.7]} 39. Qf3 {[%clk 0:00:26.1]} 39... Rf5 {[%clk 0:00:07.1]} 40.
Qb7+ {[%clk 0:00:23.1]} 40... Kh6 {[%clk 0:00:07.9]} 41. Qb4 {[%clk 0:00:24.7]}
41... Rf2 {[%clk 0:00:07.3]} 42. Qe7 {[%clk 0:00:07.9]} 42... Kh5 {[%clk
0:00:02.7]} 43. Qe5+ {[%clk 0:00:07]} 43... Kh6 {[%clk 0:00:03.4]} 44. Qg3
{[%clk 0:00:08.1]} 44... Rf5 {[%clk 0:00:03.3]} 45. Qh4+ {[%clk 0:00:08.4]}
45... Rh5 {[%clk 0:00:04.5]} 46. Qxc4 {[%clk 0:00:09.3]} 46... Rg5 {[%clk
0:00:05.1]} 47. Qh4+ {[%clk 0:00:10]} 47... Kg7 {[%clk 0:00:06.4]} 48. Qd4+
{[%clk 0:00:10]} 48... Qxd4 {[%clk 0:00:06.8]} 49. cxd4 {[%clk 0:00:11.7]} 49...
Rd5 {[%clk 0:00:07.4]} 50. Ra1 {[%clk 0:00:12.5]} 50... Rxd4 {[%clk 0:00:05.7]}
51. a5 {[%clk 0:00:13.8]} 51... Rd7 {[%clk 0:00:06.8]} 52. a6 {[%clk 0:00:14.9]}
52... Ra7 {[%clk 0:00:08.4]} 53. Kg1 {[%clk 0:00:16.1]} 53... Kf6 {[%clk
0:00:10]} 54. Kf2 {[%clk 0:00:16.9]} 54... Ke5 {[%clk 0:00:11.7]} 55. Ke3 {[%clk
0:00:18.1]} 1-0

[Event "GrandPrix_29.05"]
[Site "Chess.com"]
[Date "2020.05.29"]
[Round "1"]
[White "JonahWillow"]
[Black "grunbergmihai"]
[Result "1-0"]
[WhiteElo "2268"]
[BlackElo "1486"]
[TimeControl "600+2"]
[EndTime "9:25:00 PDT"]
[Termination "JonahWillow won by resignation"]

1. e4 {[%clk 0:10:00]} 1... Nf6 {[%clk 0:09:58.8]} 2. Nc3 {[%clk 0:09:59.6]}
2... d5 {[%clk 0:09:59.2]} 3. e5 {[%clk 0:10:00]} 3... Nfd7 {[%clk 0:09:58.5]}
4. e6 {[%clk 0:09:51.7]} 4... fxe6 {[%clk 0:09:53.2]} 5. d4 {[%clk 0:09:52.8]}
5... c5 {[%clk 0:09:52.1]} 6. dxc5 {[%clk 0:09:49.3]} 6... Nc6 {[%clk
0:08:59.6]} 7. Nf3 {[%clk 0:09:46.9]} 7... Nxc5 {[%clk 0:08:42.4]} 8. Bb5 {[%clk
0:09:43.8]} 8... Qd6 {[%clk 0:07:57.8]} 9. Qd4 {[%clk 0:08:52.7]} 9... Nd7
{[%clk 0:07:26]} 10. Bxc6 {[%clk 0:08:36.7]} 10... bxc6 {[%clk 0:06:59.4]} 11.
Bf4 {[%clk 0:07:58.2]} 11... c5 {[%clk 0:06:59.8]} 12. Qd2 {[%clk 0:07:29.2]}
12... e5 {[%clk 0:06:08.2]} 13. Bg3 {[%clk 0:04:52.8]} 13... Bb7 {[%clk
0:05:51.6]} 14. Qe2 {[%clk 0:04:18.6]} 14... Ba6 {[%clk 0:05:12.2]} 15. Nb5
{[%clk 0:03:55.6]} 15... Qb6 {[%clk 0:04:52.7]} 16. Nc7+ {[%clk 0:03:53.6]}
16... Qxc7 {[%clk 0:04:51]} 17. Qxa6 {[%clk 0:03:55.5]} 17... Qb6 {[%clk
0:03:36.9]} 18. Qxb6 {[%clk 0:03:05.8]} 18... axb6 {[%clk 0:03:37.8]} 19. Nxe5
{[%clk 0:03:07]} 19... Nxe5 {[%clk 0:03:22.3]} 20. Bxe5 {[%clk 0:03:08.9]} 20...
e6 {[%clk 0:03:14.8]} 21. O-O {[%clk 0:02:45.5]} 21... Kd7 {[%clk 0:02:48.6]}
22. Rfe1 {[%clk 0:02:38.7]} 22... Rg8 {[%clk 0:02:44.5]} 23. Re3 {[%clk
0:02:26.2]} 23... Bd6 {[%clk 0:02:45.2]} 24. a3 {[%clk 0:01:58.7]} 24... g6
{[%clk 0:02:36.1]} 25. Rae1 {[%clk 0:01:57.4]} 25... Bxe5 {[%clk 0:02:36]} 26.
Rxe5 {[%clk 0:01:58.3]} 26... Rge8 {[%clk 0:02:32.3]} 27. h4 {[%clk 0:01:45.7]}
27... Re7 {[%clk 0:02:17.7]} 28. h5 {[%clk 0:01:43.8]} 28... Rf8 {[%clk
0:02:14.3]} 29. hxg6 {[%clk 0:01:41.9]} 29... hxg6 {[%clk 0:02:15.4]} 30. Rg5
{[%clk 0:01:43.3]} 30... Rf6 {[%clk 0:02:11.8]} 31. Re3 {[%clk 0:01:42.6]} 31...
Ref7 {[%clk 0:02:07.6]} 32. f3 {[%clk 0:01:43.2]} 32... Kd6 {[%clk 0:02:01.4]}
33. Kf2 {[%clk 0:01:39.4]} 33... Re7 {[%clk 0:02:01.7]} 34. Rb3 {[%clk
0:01:35.1]} 34... Kc6 {[%clk 0:01:59.1]} 35. Re3 {[%clk 0:01:32.4]} 35... d4
{[%clk 0:01:53.8]} 36. Re4 {[%clk 0:01:25.8]} 36... Kd6 {[%clk 0:01:50.5]} 37.
Reg4 {[%clk 0:01:23.6]} 37... Rg7 {[%clk 0:01:47.9]} 38. Re4 {[%clk 0:01:24.2]}
38... Rf5 {[%clk 0:01:45.7]} 39. Rgg4 {[%clk 0:01:19.8]} 39... e5 {[%clk
0:01:40.6]} 40. Rh4 {[%clk 0:01:20.5]} 40... c4 {[%clk 0:01:34.2]} 41. Rh8
{[%clk 0:01:17.6]} 41... g5 {[%clk 0:01:21.9]} 42. Rc8 {[%clk 0:01:14.8]} 42...
Kd5 {[%clk 0:01:14]} 43. Rd8+ {[%clk 0:01:16]} 43... Kc5 {[%clk 0:01:14.7]} 44.
Rc8+ {[%clk 0:01:17.3]} 44... Kd5 {[%clk 0:01:15.1]} 45. Rd8+ {[%clk 0:01:15.2]}
45... Kc5 {[%clk 0:01:10.7]} 46. g4 {[%clk 0:01:16.4]} 46... Rf4 {[%clk
0:01:08.9]} 47. Rxe5+ {[%clk 0:01:17.7]} 47... Kc6 {[%clk 0:01:10]} 48. Re4
{[%clk 0:00:51.2]} 48... Rxe4 {[%clk 0:01:02]} 49. fxe4 {[%clk 0:00:53.1]} 49...
Rf7+ {[%clk 0:00:55.9]} 50. Kg3 {[%clk 0:00:54.2]} 50... Rd7 {[%clk 0:00:40.5]}
51. Rxd7 {[%clk 0:00:22.6]} 51... Kxd7 {[%clk 0:00:40.4]} 52. Kf3 {[%clk
0:00:14.7]} 52... b5 {[%clk 0:00:35.3]} 53. e5 {[%clk 0:00:05.3]} 53... Ke6
{[%clk 0:00:27.7]} 54. Ke4 {[%clk 0:00:06.5]} 54... d3 {[%clk 0:00:25.4]} 55.
cxd3 {[%clk 0:00:08.4]} 55... cxd3 {[%clk 0:00:26.7]} 56. Kxd3 {[%clk
0:00:10.3]} 56... Kxe5 {[%clk 0:00:28.1]} 57. b3 {[%clk 0:00:10.2]} 57... Kf4
{[%clk 0:00:26.4]} 58. a4 {[%clk 0:00:11.6]} 58... bxa4 {[%clk 0:00:27.7]} 59.
bxa4 {[%clk 0:00:13.5]} 59... Kxg4 {[%clk 0:00:28.7]} 60. a5 {[%clk 0:00:10.6]}
60... Kh3 {[%clk 0:00:29.8]} 61. a6 {[%clk 0:00:08.6]} 61... g4 {[%clk
0:00:31.3]} 62. a7 {[%clk 0:00:10.5]} 62... g3 {[%clk 0:00:32.9]} 63. a8=Q
{[%clk 0:00:12.4]} 63... g2 {[%clk 0:00:34.2]} 64. Qh8+ {[%clk 0:00:14.1]} 64...
Kg3 {[%clk 0:00:35.5]} 65. Qg7+ {[%clk 0:00:16]} 65... Kh2 {[%clk 0:00:36.8]}
66. Qh6+ {[%clk 0:00:17.3]} 66... Kg1 {[%clk 0:00:38.2]} 67. Qg5 {[%clk
0:00:19.2]} 67... Kh1 {[%clk 0:00:39.1]} 68. Qh4+ {[%clk 0:00:20.1]} 1-0

[Event "GrandPrix_29.05"]
[Site "Chess.com"]
[Date "2020.05.29"]
[Round "1"]
[White "GeorgMeier"]
[Black "Gordima"]
[Result "1-0"]
[WhiteElo "2634"]
[BlackElo "2163"]
[TimeControl "600+2"]
[EndTime "9:25:03 PDT"]
[Termination "GeorgMeier won by resignation"]

1. Nf3 {[%clk 0:10:00.7]} 1... Nf6 {[%clk 0:09:50.5]} 2. g3 {[%clk 0:10:01.9]}
2... b6 {[%clk 0:09:38.9]} 3. Bg2 {[%clk 0:10:02.4]} 3... Bb7 {[%clk 0:09:33.2]}
4. O-O {[%clk 0:10:00]} 4... g6 {[%clk 0:09:27.6]} 5. d4 {[%clk 0:09:53.1]} 5...
Bg7 {[%clk 0:09:25.8]} 6. c4 {[%clk 0:09:53.8]} 6... O-O {[%clk 0:09:12.9]} 7.
d5 {[%clk 0:09:54]} 7... Ne4 {[%clk 0:08:59.8]} 8. Qc2 {[%clk 0:09:55.1]} 8...
f5 {[%clk 0:08:57]} 9. Rd1 {[%clk 0:09:55.9]} 9... Na6 {[%clk 0:08:36.2]} 10.
Ng5 {[%clk 0:09:56.1]} 10... Nd6 {[%clk 0:08:22.9]} 11. Na3 {[%clk 0:09:57.1]}
11... Nc5 {[%clk 0:08:10.4]} 12. Be3 {[%clk 0:09:09.8]} 12... a5 {[%clk
0:07:35.5]} 13. Rac1 {[%clk 0:08:48.6]} 13... Bf6 {[%clk 0:06:44.4]} 14. Nf3
{[%clk 0:08:18]} 14... Rb8 {[%clk 0:05:40.8]} 15. Nb5 {[%clk 0:07:58.5]} 15...
Ba6 {[%clk 0:05:10]} 16. Nfd4 {[%clk 0:07:00.5]} 16... Rc8 {[%clk 0:04:45.1]}
17. b3 {[%clk 0:06:47.6]} 17... Nce4 {[%clk 0:04:12]} 18. Nxd6 {[%clk 0:03:49]}
18... Nxd6 {[%clk 0:04:01.9]} 19. c5 {[%clk 0:03:49.1]} 19... bxc5 {[%clk
0:03:56.9]} 20. Qxc5 {[%clk 0:03:50.2]} 20... Nb7 {[%clk 0:03:22.4]} 21. Qc2
{[%clk 0:03:38.3]} 21... Nd6 {[%clk 0:03:19.8]} 22. a4 {[%clk 0:03:15.9]} 22...
Bg7 {[%clk 0:02:51.5]} 23. Qd2 {[%clk 0:03:06.7]} 23... Ra8 {[%clk 0:02:46]} 24.
Bh6 {[%clk 0:02:52.3]} 24... Bxh6 {[%clk 0:02:42.9]} 25. Qxh6 {[%clk 0:02:52.9]}
25... Qb8 {[%clk 0:02:41.9]} 26. Qe3 {[%clk 0:02:29.2]} 26... Rf7 {[%clk
0:02:29.5]} 27. Rc5 {[%clk 0:02:20.4]} 27... Ra7 {[%clk 0:02:24.9]} 28. Rdc1
{[%clk 0:02:08.2]} 28... Qb6 {[%clk 0:02:15.9]} 29. Qc3 {[%clk 0:02:03.9]} 29...
Ne4 {[%clk 0:01:31.7]} 30. Bxe4 {[%clk 0:02:04.2]} 30... fxe4 {[%clk 0:01:33.6]}
31. Qe3 {[%clk 0:02:05.3]} 31... Qb4 {[%clk 0:00:43.1]} 32. Nb5 {[%clk
0:01:27.6]} 32... Bxb5 {[%clk 0:00:38.7]} 33. Rxb5 {[%clk 0:01:25.5]} 33... Qa3
{[%clk 0:00:40]} 34. Rb8+ {[%clk 0:00:53.5]} 34... Kg7 {[%clk 0:00:40.1]} 35.
Qd4+ {[%clk 0:00:51.2]} 35... Rf6 {[%clk 0:00:34.4]} 36. Rc2 {[%clk 0:00:32.4]}
36... Ra6 {[%clk 0:00:26.4]} 37. Qxe4 {[%clk 0:00:33]} 37... Qa1+ {[%clk
0:00:25.5]} 38. Kg2 {[%clk 0:00:33.8]} 38... Rf7 {[%clk 0:00:26.8]} 39. f3
{[%clk 0:00:20.3]} 39... Qd1 {[%clk 0:00:13.7]} 40. Qd3 {[%clk 0:00:16.6]} 40...
Qxd3 {[%clk 0:00:11.2]} 41. exd3 {[%clk 0:00:18.5]} 41... Rd6 {[%clk 0:00:11.6]}
42. Rb5 {[%clk 0:00:17.5]} 42... c6 {[%clk 0:00:09.4]} 43. Rxa5 {[%clk
0:00:18.6]} 43... cxd5 {[%clk 0:00:08.9]} 44. Rb5 {[%clk 0:00:19]} 44... Ra6
{[%clk 0:00:07.3]} 45. Rxd5 {[%clk 0:00:19]} 45... d6 {[%clk 0:00:06.4]} 46. Rb5
{[%clk 0:00:18.6]} 46... Rf8 {[%clk 0:00:06]} 47. f4 {[%clk 0:00:19.5]} 47...
Kf6 {[%clk 0:00:07.1]} 48. d4 {[%clk 0:00:20.5]} 48... h6 {[%clk 0:00:07.1]} 49.
h4 {[%clk 0:00:21.4]} 49... Rfa8 {[%clk 0:00:06.9]} 50. Kf3 {[%clk 0:00:22]}
50... R8a7 {[%clk 0:00:06.7]} 51. Ke4 {[%clk 0:00:21.6]} 51... Ra8 {[%clk
0:00:05.4]} 52. g4 {[%clk 0:00:22.6]} 52... h5 {[%clk 0:00:05.1]} 53. g5+ {[%clk
0:00:21.6]} 53... Kf7 {[%clk 0:00:05.7]} 54. Rc7 {[%clk 0:00:22]} 54... Ke6
{[%clk 0:00:03.1]} 55. d5+ {[%clk 0:00:20.5]} 55... Kf7 {[%clk 0:00:04.1]} 56.
Rbb7 {[%clk 0:00:21.6]} 56... Re8 {[%clk 0:00:05.8]} 57. f5 {[%clk 0:00:21.9]}
57... gxf5+ {[%clk 0:00:06.8]} 58. Kxf5 {[%clk 0:00:23.8]} 58... Ra5 {[%clk
0:00:08.4]} 59. Ke4 {[%clk 0:00:25.2]} 59... Kf8 {[%clk 0:00:08.2]} 60. Kd4
{[%clk 0:00:21.7]} 60... e5+ {[%clk 0:00:03.3]} 61. dxe6 {[%clk 0:00:22.5]}
61... Rxe6 {[%clk 0:00:04]} 62. Rc8+ {[%clk 0:00:21.6]} 62... Re8 {[%clk
0:00:05.6]} 63. Rxe8+ {[%clk 0:00:22.4]} 63... Kxe8 {[%clk 0:00:07.5]} 64. Rb5
{[%clk 0:00:23.7]} 1-0

[Event "GrandPrix_29.05"]
[Site "Chess.com"]
[Date "2020.05.29"]
[Round "1"]
[White "PeshkaTheGreat"]
[Black "Elshadchess"]
[Result "1-0"]
[WhiteElo "2231"]
[BlackElo "1198"]
[TimeControl "600+2"]
[EndTime "9:25:03 PDT"]
[Termination "PeshkaTheGreat won by resignation"]

1. e4 {[%clk 0:09:58]} 1... d5 {[%clk 0:08:24]} 2. exd5 {[%clk 0:09:55.4]} 2...
Nf6 {[%clk 0:08:24.6]} 3. Bb5+ {[%clk 0:09:51.4]} 3... Bd7 {[%clk 0:08:24.9]} 4.
Be2 {[%clk 0:09:48.2]} 4... Nxd5 {[%clk 0:08:24]} 5. Nf3 {[%clk 0:09:48.2]} 5...
c5 {[%clk 0:08:14.8]} 6. O-O {[%clk 0:09:40.5]} 6... Nf4 {[%clk 0:08:12.5]} 7.
Bc4 {[%clk 0:09:11]} 7... e6 {[%clk 0:07:55.8]} 8. d4 {[%clk 0:09:07]} 8... Qc7
{[%clk 0:07:16.3]} 9. Ne5 {[%clk 0:08:11.3]} 9... Ng6 {[%clk 0:07:05.2]} 10.
Nxd7 {[%clk 0:07:54.6]} 10... Nxd7 {[%clk 0:07:00.9]} 11. d5 {[%clk 0:07:53.1]}
11... e5 {[%clk 0:05:52.6]} 12. Nc3 {[%clk 0:05:38.3]} 12... a6 {[%clk
0:05:52.6]} 13. a4 {[%clk 0:05:38]} 13... Bd6 {[%clk 0:05:42.3]} 14. Ne4 {[%clk
0:04:56]} 14... O-O {[%clk 0:05:41.3]} 15. Qh5 {[%clk 0:04:53]} 15... f5 {[%clk
0:05:33.3]} 16. Ng5 {[%clk 0:04:46.1]} 16... Nf6 {[%clk 0:05:33.8]} 17. Qh3
{[%clk 0:04:41.9]} 17... Qd7 {[%clk 0:04:43.7]} 18. Ne6 {[%clk 0:04:34.7]} 18...
b5 {[%clk 0:04:30]} 19. Nxf8 {[%clk 0:03:13.8]} 19... Rxf8 {[%clk 0:04:30.4]}
20. axb5 {[%clk 0:03:08]} 20... axb5 {[%clk 0:04:32.3]} 21. Be2 {[%clk
0:03:08.6]} 21... Nxd5 {[%clk 0:04:11.1]} 22. Rd1 {[%clk 0:02:03.7]} 22... Ndf4
{[%clk 0:04:04.1]} 23. Bxf4 {[%clk 0:02:04]} 23... Nxf4 {[%clk 0:04:06]} 24. Qe3
{[%clk 0:02:04]} 24... Qc6 {[%clk 0:03:47.1]} 25. Bf1 {[%clk 0:01:33.9]} 25...
c4 {[%clk 0:03:38.8]} 26. g3 {[%clk 0:01:25.8]} 26... Rf6 {[%clk 0:03:15]} 27.
Qa7 {[%clk 0:01:00]} 27... Rf8 {[%clk 0:02:08.9]} 28. gxf4 {[%clk 0:00:51.6]}
28... Bc5 {[%clk 0:02:09.1]} 29. Bg2 {[%clk 0:00:42.7]} 29... e4 {[%clk
0:02:01.6]} 30. Qd7 {[%clk 0:00:40.4]} 30... Qb6 {[%clk 0:01:54.4]} 31. Rf1
{[%clk 0:00:36.9]} 31... h6 {[%clk 0:01:51]} 32. Kh1 {[%clk 0:00:36.7]} 32...
Bxf2 {[%clk 0:01:47.4]} 33. Qd5+ {[%clk 0:00:35.4]} 33... Kh8 {[%clk 0:01:37.6]}
34. b3 {[%clk 0:00:36.5]} 34... e3 {[%clk 0:01:34]} 35. Qf3 {[%clk 0:00:35.3]}
35... cxb3 {[%clk 0:01:33.3]} 36. cxb3 {[%clk 0:00:37.2]} 36... Rd8 {[%clk
0:01:19]} 37. Ra8 {[%clk 0:00:37.3]} 37... Kh7 {[%clk 0:01:18.3]} 38. Rxd8
{[%clk 0:00:37.6]} 38... Qxd8 {[%clk 0:01:20.1]} 39. Bh3 {[%clk 0:00:31.4]}
39... Qd3 {[%clk 0:01:15.1]} 40. Rd1 {[%clk 0:00:16.5]} 40... Qc2 {[%clk
0:01:09.5]} 41. Qd5 {[%clk 0:00:17.4]} 41... Qe4+ {[%clk 0:00:33.2]} 42. Qxe4
{[%clk 0:00:18.2]} 42... fxe4 {[%clk 0:00:35.1]} 43. Bf1 {[%clk 0:00:17.7]}
43... Kg6 {[%clk 0:00:34.5]} 44. Bxb5 {[%clk 0:00:17.4]} 44... Kf5 {[%clk
0:00:34.2]} 45. Be2 {[%clk 0:00:18.8]} 45... Kxf4 {[%clk 0:00:35]} 46. b4 {[%clk
0:00:20.7]} 46... Bh4 {[%clk 0:00:32.8]} 47. b5 {[%clk 0:00:22.1]} 47... Be7
{[%clk 0:00:24.1]} 48. b6 {[%clk 0:00:21.7]} 48... Bf6 {[%clk 0:00:17.8]} 49.
Rf1+ {[%clk 0:00:22.3]} 49... Ke5 {[%clk 0:00:16.6]} 50. Rxf6 {[%clk 0:00:21.9]}
50... gxf6 {[%clk 0:00:17.7]} 51. b7 {[%clk 0:00:23.2]} 51... f5 {[%clk
0:00:19.1]} 52. b8=Q+ {[%clk 0:00:25.1]} 52... Kd4 {[%clk 0:00:19.2]} 53. Qf4
{[%clk 0:00:25.6]} 53... h5 {[%clk 0:00:16.3]} 54. Qxf5 {[%clk 0:00:26.1]} 54...
Kc3 {[%clk 0:00:17.9]} 55. Qxe4 {[%clk 0:00:26.7]} 55... Kd2 {[%clk 0:00:19.7]}
56. Qd3+ {[%clk 0:00:27.4]} 56... Kc1 {[%clk 0:00:18.5]} 57. Qc3+ {[%clk
0:00:21.6]} 57... Kb1 {[%clk 0:00:18.1]} 58. Bd3+ {[%clk 0:00:21.8]} 58... Ka2
{[%clk 0:00:18.2]} 59. Bc2 {[%clk 0:00:23.1]} 1-0

[Event "GrandPrix_29.05"]
[Site "Chess.com"]
[Date "2020.05.29"]
[Round "1"]
[White "Kopytkin"]
[Black "Yuri202062"]
[Result "1/2-1/2"]
[WhiteElo "2148"]
[BlackElo "2343"]
[TimeControl "600+2"]
[EndTime "9:25:06 PDT"]
[Termination "Game drawn - insufficient material"]

1. e4 {[%clk 0:10:01]} 1... c5 {[%clk 0:10:00.6]} 2. c3 {[%clk 0:09:59.7]} 2...
Nf6 {[%clk 0:10:00.4]} 3. e5 {[%clk 0:09:59.3]} 3... Nd5 {[%clk 0:10:01.3]} 4.
Nf3 {[%clk 0:09:58.5]} 4... Nc6 {[%clk 0:10:01.1]} 5. d4 {[%clk 0:09:28.3]} 5...
cxd4 {[%clk 0:10:00.5]} 6. cxd4 {[%clk 0:09:29.1]} 6... d6 {[%clk 0:10:00.7]} 7.
Bc4 {[%clk 0:09:14.6]} 7... Nb6 {[%clk 0:10:00.3]} 8. Bb3 {[%clk 0:08:58.6]}
8... dxe5 {[%clk 0:09:56.1]} 9. Nxe5 {[%clk 0:08:00.4]} 9... Nxe5 {[%clk
0:09:52.6]} 10. dxe5 {[%clk 0:08:01.5]} 10... Qxd1+ {[%clk 0:09:52.7]} 11. Bxd1
{[%clk 0:08:01.2]} 11... Bf5 {[%clk 0:09:25.3]} 12. O-O {[%clk 0:07:48.6]} 12...
e6 {[%clk 0:09:25.4]} 13. Be3 {[%clk 0:07:31.7]} 13... Be7 {[%clk 0:09:12.6]}
14. Nc3 {[%clk 0:07:04.9]} 14... Nc4 {[%clk 0:08:35]} 15. Ba4+ {[%clk 0:06:47]}
15... Kf8 {[%clk 0:08:34.7]} 16. Rad1 {[%clk 0:05:24.7]} 16... Nxb2 {[%clk
0:05:39.6]} 17. Rd7 {[%clk 0:05:22.6]} 17... Nxa4 {[%clk 0:05:26.8]} 18. Nxa4
{[%clk 0:05:21.9]} 18... Be4 {[%clk 0:05:26]} 19. Bc5 {[%clk 0:04:31.2]} 19...
Bxc5 {[%clk 0:05:02.3]} 20. Nxc5 {[%clk 0:04:31.1]} 20... Bc6 {[%clk 0:04:22.4]}
21. Rc7 {[%clk 0:04:31.8]} 21... h5 {[%clk 0:03:14.7]} 22. Rd1 {[%clk
0:04:16.9]} 22... h4 {[%clk 0:03:00]} 23. Nxb7 {[%clk 0:03:45.6]} 23... Bxb7
{[%clk 0:02:48.2]} 24. Rxb7 {[%clk 0:02:07.9]} 24... Rh5 {[%clk 0:02:47.4]} 25.
Rdd7 {[%clk 0:01:54.4]} 25... Rf5 {[%clk 0:02:46.6]} 26. Rxa7 {[%clk 0:01:39.4]}
26... Rxa7 {[%clk 0:02:45]} 27. Rxa7 {[%clk 0:01:40.3]} 27... Rxe5 {[%clk
0:02:46.1]} 28. Kf1 {[%clk 0:01:37.4]} 28... g5 {[%clk 0:02:34.9]} 29. h3 {[%clk
0:01:36.9]} 29... Rb5 {[%clk 0:02:26.8]} 30. a4 {[%clk 0:01:28.2]} 30... Rb1+
{[%clk 0:02:07]} 31. Ke2 {[%clk 0:01:28.4]} 31... Kg7 {[%clk 0:02:08.1]} 32. a5
{[%clk 0:01:23.4]} 32... Rb2+ {[%clk 0:02:07.2]} 33. Ke3 {[%clk 0:01:20.4]}
33... Kg6 {[%clk 0:02:02.3]} 34. a6 {[%clk 0:01:20.6]} 34... Ra2 {[%clk
0:01:58.7]} 35. Ra8 {[%clk 0:01:19.7]} 35... Kf5 {[%clk 0:01:40.9]} 36. Ra7
{[%clk 0:01:07.6]} 36... f6 {[%clk 0:01:40.1]} 37. Ra8 {[%clk 0:01:08.6]} 37...
Ra3+ {[%clk 0:01:37.8]} 38. Ke2 {[%clk 0:01:08.9]} 38... Kf4 {[%clk 0:01:28.7]}
39. a7 {[%clk 0:00:48.4]} 39... f5 {[%clk 0:01:02.4]} 40. Re8 {[%clk 0:00:20.1]}
40... Rxa7 {[%clk 0:00:51.2]} 41. Rxe6 {[%clk 0:00:20.1]} 41... Ra2+ {[%clk
0:00:45.8]} 42. Kf1 {[%clk 0:00:20.8]} 42... g4 {[%clk 0:00:43.4]} 43. Rh6
{[%clk 0:00:16.9]} 43... Kg5 {[%clk 0:00:35.7]} 44. Rh8 {[%clk 0:00:17.7]} 44...
g3 {[%clk 0:00:34.4]} 45. fxg3 {[%clk 0:00:10.7]} 45... hxg3 {[%clk 0:00:34.6]}
46. Rb8 {[%clk 0:00:08.1]} 46... f4 {[%clk 0:00:09]} 47. Rb1 {[%clk 0:00:07.6]}
47... Rf2+ {[%clk 0:00:08.1]} 48. Kg1 {[%clk 0:00:08.6]} 48... f3 {[%clk
0:00:08]} 49. gxf3 {[%clk 0:00:09.2]} 49... Kh4 {[%clk 0:00:06.8]} 50. Rb8
{[%clk 0:00:08.6]} 50... Rxf3 {[%clk 0:00:05.2]} 51. Rh8+ {[%clk 0:00:09.5]}
51... Kg5 {[%clk 0:00:05.6]} 52. Kg2 {[%clk 0:00:10.1]} 52... Ra3 {[%clk
0:00:06.5]} 53. Rg8+ {[%clk 0:00:11.2]} 53... Kf6 {[%clk 0:00:06.8]} 54. Rxg3
{[%clk 0:00:12.2]} 54... Rxg3+ {[%clk 0:00:07.8]} 55. Kxg3 {[%clk 0:00:13.4]}
55... Kg5 {[%clk 0:00:09]} 56. h4+ {[%clk 0:00:14.3]} 56... Kh5 {[%clk
0:00:10.2]} 57. Kh3 {[%clk 0:00:15.5]} 57... Kh6 {[%clk 0:00:11.3]} 58. Kg4
{[%clk 0:00:16.9]} 58... Kh7 {[%clk 0:00:12.5]} 59. h5 {[%clk 0:00:18.3]} 59...
Kh8 {[%clk 0:00:13.6]} 60. Kg5 {[%clk 0:00:19.3]} 60... Kh7 {[%clk 0:00:14.7]}
61. h6 {[%clk 0:00:20.5]} 61... Kh8 {[%clk 0:00:15.8]} 62. Kg6 {[%clk
0:00:21.8]} 62... Kg8 {[%clk 0:00:16.7]} 63. Kf6 {[%clk 0:00:23.4]} 63... Kh7
{[%clk 0:00:17.5]} 64. Ke5 {[%clk 0:00:23.8]} 64... Kxh6 {[%clk 0:00:18.3]}
1/2-1/2